Cogmind - Beta 17 @@@ ROGUE MODE // 2026.07.02 @ 17:35:45 Player: JuustuToug Result: Destroyed by S-43 Plague with Heavy Machine Gun Performance ------------- Evolutions (8) 4000 Regions Visited (20) 4000 Robots Destroyed (185) 925 Value Destroyed (7528) 7528 Prototype IDs (46) 920 Alien Tech Used (9) 1800 Bonus (10883) 10883 TOTAL SCORE: 30056 Bonus ------- High Alert Combat Kills 339 Follower Combat Kills 2403 Awakened Behemoth Slayer 1000 Network Hubs Disabled 400 Registered with UFD 300 Met Optimus in HQ 500 Met Imprinter 300 Built Enhanced Grunts 300 Met R17 at Cetus 500 Used Core Reset Matrix 3000 Met R17 at Research 2000 Friendly Fire -159 Cogmind --------- Core Integrity 0/1450 Matter 38/425 Energy 28/100 System Corruption 18% Temperature Cool (21) Movement Flying (35) Location -2/Research Parts ------- > --- POWER (3) -------- (None) > --- PROPULSION (7) --- Combat Linear Gravjet Electron Diverter > --- UTILITY (11) ----- Structural Scanner Experimental Optical Array Advanced Signal Interpreter Experimental Targeting Computer Improved Armor Integrity Analyzer Layered Light Armor Plating Graphene Brace Improved Hacking Suite Improved Hacking Suite Spacefold Activator > --- WEAPON (2) ------- (None) > --- INVENTORY (9) ---- Compact Particle Reactor Light Quantum Reactor Dimensional Node Initializer Sigix Sheargun Nova Cannon Hypervelocity Railgun Gamma Bomb Array Peak State ------------ > --- POWER ------------ Light Antimatter Reactor Light Particle Reactor > --- PROPULSION ------- Improved Antigrav System Improved Antigrav System Improved Gyrokinetic Inverter Improved Gyrokinetic Inverter Improved Linear Gravjet Combat Antigrav System > --- UTILITY ---------- Advanced Heat Sink Advanced Cooling System Large Storage Unit Experimental Optical Array Advanced Sensor Array Advanced Signal Interpreter Advanced Transmission Jammer Centrium Medium Armor Plating Graphene Brace Improved Hacking Suite Spacefold Activator > --- WEAPON ----------- Sigix Broadsword > --- INVENTORY -------- Micro Antimatter Reactor Micro Antimatter Reactor Antigrav System Structural Scanner Advanced Sensor Array Layered Medium Armor Plating Dimensional Node Initializer Transdimensional Reconstructor Transdimensional Reconstructor Transdimensional Reconstructor Transdimensional Reconstructor Subatomic Replicator Terrabomb Nova Cannon Hypervelocity Railgun Gamma Bomb Array Mini Smartbomb Launcher Advanced Micro-nuke Launcher Advanced Remote Datajack [Rating: 175] Favorites ----------- Power Light Antimatter Reactor Engine Angular Momentum Engine Power Core Light Fission Core Reactor Light Antimatter Reactor Propulsion Improved Gyrokinetic Inverter Treads Light Treads Leg Improved Carbon-fiber Leg Wheel Compact Wheel Hover Unit Improved Gyrokinetic Inverter Flight Unit Impulse Thruster Utility Large Storage Unit Device Seismic Detector Storage Large Storage Unit Processor Enhanced Optical Array Hackware Improved Hacking Suite Protection Makeshift Medium Armor Plating Artifact Spacefold Activator Weapon Power Sword Energy Gun Sigix Sheargun Energy Cannon Nova Cannon Ballistic Gun Assault Rifle Launcher Long-range Missile Launcher Special Weapon Improved Remote Datajack Slashing Weapon Power Sword Piercing Weapon CR-A16's Pointy Stick Build | -11 -10 -10 -9 -6 -6 -6 -6 -5 -5 -5 -5 -4 -4 -4 -4 -4 -3 -3 -3 -2 ------- Run | Yrd Mat Sub Scr Fac Low Low Zio Pro Fac Upp Upp Fac Ext Cet Arc Hub Res Qua Sec Res Slots Evolved 16 | . . . . 8 . . . . 2 . . 2 . . . . 2 . . 2 Power 2 | . . . . 1 . . . . . . . . . . . . . . . 1 Propulsion 5 | . . . . 2 . . . . 1 . . 1 . . . . . . . 1 Utility 9 | . . . . 5 . . . . 1 . . 1 . . . . 2 . . . Weapon . | . . . . . . . . . . . . . . . . . . . . . Parts Attached 257 | 7 . . 19 36 4 2 3 4 29 3 . 13 18 7 3 9 27 8 29 36 Power 32 | 1 . . 3 5 . . . . 4 . . 3 2 1 . 2 3 2 3 3 Engine 12 | 1 . . 2 4 . . . . 2 . . 2 . . . . 1 . . . Core 5 | . . . 1 1 . . . . 2 . . 1 . . . . . . . . Reactor 15 | . . . . . . . . . . . . . 2 1 . 2 2 2 3 3 Propulsion 61 | 2 . . 3 13 1 . . 1 11 1 . 6 4 . . 2 5 . 7 5 Treads 13 | 2 . . 3 4 . . . . 3 1 . . . . . . . . . . Leg 8 | . . . . 4 1 . . . 3 . . . . . . . . . . . Wheel 11 | . . . . 5 . . . 1 5 . . . . . . . . . . . Hover 27 | . . . . . . . . . . . . 5 4 . . 2 5 . 7 4 Flight 2 | . . . . . . . . . . . . 1 . . . . . . . 1 Utility 120 | 2 . . 9 13 2 1 3 . 10 1 . 4 11 4 2 2 14 3 15 24 Device 60 | 1 . . 1 6 1 1 3 . 7 . . 4 5 3 2 . 6 1 6 13 Storage 9 | 1 . . 3 . . . . . 1 . . . 1 . . . 2 . . 1 Processor 19 | . . . 1 3 1 . . . . 1 . . 1 . . . 5 . 4 3 Hackware 8 | . . . . 2 . . . . . . . . . . . 1 . . 1 4 Protection 23 | . . . 4 2 . . . . 2 . . . 4 1 . 1 1 2 3 3 Artifact 1 | . . . . . . . . . . . . . . . . . . . 1 . Weapon 44 | 2 . . 4 5 1 1 . 3 4 1 . . 1 2 1 3 5 3 4 4 Energy Gun 2 | . . . . . . . . . . . . . . . . . . . 2 . Energy Cannon 4 | . . . . . . . . . 1 . . . 1 . . . . 1 . 1 Ballistic Gun 8 | 2 . . . . . . . . 1 . . . . 2 . . 2 . 1 . Ballistic Cannon . | . . . . . . . . . . . . . . . . . . . . . Launcher 13 | . . . . 3 . 1 . 1 . . . . . . . 3 2 1 1 1 Special Weapon 4 | . . . . 1 . . . 1 1 . . . . . . . 1 . . . Impact Weapon . | . . . . . . . . . . . . . . . . . . . . . Slashing Weapon 11 | . . . 4 1 1 . . . . 1 . . . . 1 . . 1 . 2 Piercing Weapon 2 | . . . . . . . . 1 1 . . . . . . . . . . . Special Melee Weapon . | . . . . . . . . . . . . . . . . . . . . . Unidentified Prototypes 29 | . . . . 1 . . 2 . 1 . . . 1 1 . 2 4 4 10 3 Corrupted Parts 4 | . . . . . . . . . 1 . . . . 2 . 1 . . . . System Corruption 14 | . . . . . . . . . 5 . . . . 5 . 4 . . . . Parts Lost 99 | . . . 4 11 . . . 4 28 . . 2 . 2 . 7 9 2 10 20 Power 17 | . . . 2 1 . . . 1 4 . . . . 1 . 1 3 . 3 1 Propulsion 41 | . . . 1 6 . . . 2 13 . . 2 . 1 . 2 3 . 2 9 Utility 32 | . . . . 4 . . . 1 8 . . . . . . 4 2 2 4 7 Weapon 9 | . . . 1 . . . . . 3 . . . . . . . 1 . 1 3 Highest Loss Streak 9 | . . . 4 3 . . . 3 6 . . 2 . 2 . 3 6 1 8 9 To Critical Strikes . | . . . . . . . . . . . . . . . . . . . . . Average Backups 12 | 1 4 6 10 12 14 14 14 13 13 4 5 4 5 13 15 14 14 14 15 11 Power 1 | . 1 1 . 1 1 1 1 . 1 . . . 1 1 2 1 1 2 1 1 Propulsion . | . . . . . 2 2 1 . . . . . . . . . . . . . Utility 3 | . 2 3 4 4 4 5 4 4 4 2 2 1 1 7 7 5 5 3 2 1 Weapon 4 | . 1 1 3 4 5 4 5 6 5 1 1 . . 2 3 6 6 4 5 5 Tool/Special . | . . . . . . . . . . . . . . . . . . . . . Unused Backups 46 | . . . 15 4 3 . 1 . 5 . . . 1 2 . 1 4 1 4 5 Power 8 | . . . 2 2 . . . . 1 . . . . . . 1 . . 1 1 Propulsion 3 | . . . 2 . 1 . . . . . . . . . . . . . . . Utility 10 | . . . 3 1 1 . 1 . 1 . . . 1 1 . . . 1 . . Weapon 19 | . . . 8 1 1 . . . 2 . . . . 1 . . 4 . . 2 Tool/Special 6 | . . . . . . . . . 1 . . . . . . . . . 3 2 Average Slot Usage (%) 90 | . 100 100 97 85 100 100 99 96 75 19 29 49 97 99 99 95 94 96 94 69 Engine 4 | . 14 14 5 9 6 6 6 5 4 . . 3 5 . . . . . . . Core 2 | . . . 8 1 6 6 6 6 . . . 1 . . . . . . . . Reactor 2 | . . . . . . . . . . . . . 4 9 10 9 7 9 8 4 Treads 8 | . 28 28 27 7 7 6 6 4 6 2 5 1 . . . . . . . . Leg 2 | . . . . 2 5 6 6 6 8 . . . . . . . . . . . Wheel 3 | . . . . 10 13 13 13 12 1 . . . . . . . . . . . Hover 9 | . . . . . . . . . . . . 12 29 31 31 29 27 28 27 16 Device 15 | . 14 14 12 7 6 6 12 10 11 . . 7 33 30 30 24 21 26 20 11 Storage 6 | . 14 14 13 6 6 6 6 6 4 . . . . 5 5 5 4 4 4 2 Processor 10 | . . . . 10 20 20 20 20 16 15 17 15 7 5 5 5 10 9 12 20 Hackware 2 | . . . . 6 6 6 . . . . . . . . . 4 4 4 4 6 Protection 4 | . . . 1 6 6 6 6 6 4 . . . 4 5 5 5 3 3 3 1 Ballistic Gun 3 | . 28 28 17 . . . . . . . . . . 2 3 . 1 2 . . Slashing Weapon 7 | . . . 9 12 13 12 13 12 9 1 5 5 5 3 4 5 2 1 3 1 Peak Build Rating 175 | 7 7 8 27 64 61 64 69 63 69 26 26 87 114 134 134 130 145 166 175 165 Average Rating 74 | 5 7 7 14 53 59 62 60 59 56 17 26 52 109 122 128 121 130 153 168 113 On Entrance 67 | . 7 7 8 25 58 60 62 61 54 10 26 26 78 110 134 126 99 145 166 148 Avg Prop Armor Cover (%) 13 | . . . 35 10 15 14 14 12 7 35 35 29 1 . . . . . 4 3 Naked Turns . | . . . . . . . . . . . . . . . . . . . . . Heaviest Build 79 | 13 13 13 41 71 55 65 61 63 66 3 3 25 62 68 68 76 75 77 77 79 Greatest Support 91 | 40 40 40 40 72 32 32 32 32 64 3 3 60 74 74 74 74 76 76 76 91 Greatest Overweight (x) 16 | . . . 1 4 1 2 1 2 16 . . . . . . 1 1 1 1 1 Average Overweight (x) . | . . . . 1 1 1 1 1 . . . . . . . . . . . . Largest Inventory Capacity 19 | 8 8 8 15 15 15 15 15 15 15 5 5 5 15 15 15 15 15 15 19 19 Average Capacity 13 | 7 8 8 11 15 15 15 15 15 14 5 5 5 5 15 15 15 15 15 16 14 Most Carried 19 | 4 5 8 15 15 15 15 15 14 15 5 5 5 8 15 15 15 15 15 19 16 Average Carried 12 | 1 4 6 10 13 14 14 14 13 13 4 5 4 5 13 14 14 14 14 15 11 Final Capacity 19 | 8 8 8 15 15 15 15 15 15 5 5 5 5 15 15 15 15 15 15 19 9 Final Carried 15 | 4 5 8 15 15 15 15 14 12 5 5 5 5 8 15 15 15 15 15 13 7 Class Distribution -------------------- 24% | Mutant 16% | Scavenger-Mutant 8% | Scavenger-Gladiator 7% | Derelict-Assassin 7% | Derelict-Mutant 7% | Scavenger-Scout 6% | Commander-Mutant 5% | Scavenger-Ninja 3% | Scavenger-Assassin 3% | Gladiator 3% | Alien-Mutant Dominant Class ---------------- Mutant | -10/Materials Mutant | -10/Subcaves Mutant | -9/Scraptown Scavenger-Gladiator | -6/Factory Scavenger-Assassin | -6/Lower Caves Derelict-Mutant | -6/Lower Caves Derelict-Assassin | -6/Zion Derelict-Assassin | -5/Proximity Caves Scavenger-Mutant | -5/Factory Mutant | -5/Upper Caves Mutant | -5/Upper Caves Mutant | -4/Factory Commander-Mutant | -4/Extension Commander-Mutant | -4/Cetus Scavenger-Mutant | -4/Archives Commander-Mutant | -4/Hub_04(d) Scavenger-Scout | -3/Research Scavenger-Scout | -3/Quarantine Scavenger-Ninja | -3/Section 7 Alien-Mutant | -2/Research Resources | -11 -10 -10 -9 -6 -6 -6 -6 -5 -5 -5 -5 -4 -4 -4 -4 -4 -3 -3 -3 -2 ----------- Run | Yrd Mat Sub Scr Fac Low Low Zio Pro Fac Upp Upp Fac Ext Cet Arc Hub Res Qua Sec Res Matter Collected 6630 | 342 6 6 279 1046 119 148 30 209 960 30 28 232 564 177 96 340 767 76 933 242 Remotely . | . . . . . . . . . . . . . . . . . . . . . Salvage Created 8340 | 201 . . 67 2328 72 152 . 408 1697 . . 303 326 68 36 549 412 . 1456 265 Parts 415 | 13 . . 1 90 4 2 . 15 91 . . 15 17 1 4 23 26 . 94 19 Haulers Intercepted 8 | . . . . 2 . . . . 1 . . 1 . . . 1 1 . 1 1 Recyclers Shooed 5 | . . . . . . . . . 3 . . . 1 . . . . . . 1 Parts Field Recycled . | . . . . . . . . . . . . . . . . . . . . . Retrieved Matter . | . . . . . . . . . . . . . . . . . . . . . Parts Self-Destructed 34 | . . 14 1 . 3 1 . 15 . . . . . . . . . . . . Prevented 4 | . . . . . . . . 4 . . . . . . . . . . . . Parts Restored . | . . . . . . . . . . . . . . . . . . . . . Kills | -11 -10 -10 -9 -6 -6 -6 -6 -5 -5 -5 -5 -4 -4 -4 -4 -4 -3 -3 -3 -2 ------- Run | Yrd Mat Sub Scr Fac Low Low Zio Pro Fac Upp Upp Fac Ext Cet Arc Hub Res Qua Sec Res Combat Hostiles Destroyed 118 | . . . . 30 1 3 . 13 28 . . 4 2 1 . 8 13 . 15 . Melee 41 | . . . . 12 1 . . 2 8 . . . 2 1 . 3 1 . 11 . Guns 1 | . . . . . . . . . . . . . . . . . . . 1 . AOE 71 | . . . . 17 . 3 . 11 16 . . 4 . . . 5 12 . 3 . Classes Destroyed 21 | 3 . . . 9 1 . . 3 1 . . . . . . 1 . . 2 1 Worker 11 | 2 . . . 4 . . . . 1 . . 1 . . . 1 1 . 1 . Builder 7 | . . . . 2 . . . . . . . . 1 . . . 2 . 1 1 Tunneler 11 | 3 . . . 1 . . . . 4 . . . 1 . . . . . . 2 Hauler 8 | . . . . 2 . . . . 1 . . 1 . . . 1 1 . 1 1 Recycler 16 | 1 . . 1 6 . . . . 4 . . 1 1 . . 1 . . 1 . Minesweeper 1 | . . . . . 1 . . . . . . . . . . . . . . . Mechanic 1 | . . . . . . . . . . . . . . . . . . . . 1 Operator 3 | . . . . 1 . . . . . . . . . . 1 . . . 1 . Drone 2 | . . . . . . . . 2 . . . . . . . . . . . . Watcher 8 | . . . . 2 . . . . 1 . . . . . . 1 1 . 2 1 Swarmer 36 | . . . . 6 . . . 6 8 . . 4 . . . 1 8 . 3 . Cutter 3 | . . . . . . . . . . . . . . . . 3 . . . . Grunt 37 | . . . . 17 . 3 . 2 8 . . . 1 . . 1 5 . . . Brawler 1 | . . . . . . . . 1 . . . . . . . . . . . . Duelist 2 | . . . . 2 . . . . . . . . . . . . . . . . Researcher 1 | . . . . . . . . . . . . . . . . . . . 1 . Sentry 11 | . . . . 2 . . . 1 2 . . . 1 . . 1 . . 4 . Hunter 2 | . . . . . . . . . 2 . . . . . . . . . . . Programmer 19 | . . . . 3 1 . . . 7 . . . . . . 2 . . 6 . Behemoth 2 | . . . . . . . . 1 1 . . . . . . . . . . . Cetus Guard 1 | . . . . . . . . . . . . . . 1 . . . . . . Executioner 2 | . . . . . . . . . . . . . . . . . . . 2 . Best Kill Streak 10 | 3 . . 1 10 1 3 . 5 5 . . 4 1 1 1 4 10 . 4 1 Combat Bots Only 9 | . . . . 8 1 3 . 5 4 . . 4 1 1 . 3 9 . 3 . Max Kills in Single Turn 4 | 1 . . 1 3 1 2 . 4 4 . . 2 1 1 1 2 4 . 2 1 Gunslinging . | . . . . . . . . . . . . . . . . . . . . . Exploded 4 | . . . . 3 . 2 . 4 3 . . 2 . . . 2 4 . 2 . Melee 1 | . . . . 1 1 . . 1 1 . . . 1 1 . 1 1 . 1 . Uniques/NPCs Destroyed . | . . . . . . . . . . . . . . . . . . . . . Combat | -11 -10 -10 -9 -6 -6 -6 -6 -5 -5 -5 -5 -4 -4 -4 -4 -4 -3 -3 -3 -2 -------- Run | Yrd Mat Sub Scr Fac Low Low Zio Pro Fac Upp Upp Fac Ext Cet Arc Hub Res Qua Sec Res Hostile Shots Fired 1294 | . . . 74 215 5 14 . 32 264 17 2 32 24 7 6 99 41 39 169 254 Missed 435 | . . . 17 58 2 5 . 23 81 4 . 20 7 . 3 33 14 7 52 109 Hits 859 | . . . 57 157 3 9 . 9 183 13 2 12 17 7 3 66 27 32 117 145 Melee 31 | . . . 1 18 . . . . . . . . . . . 5 . . . 7 Projectile 828 | . . . 56 139 3 9 . 9 183 13 2 12 17 7 3 61 27 32 117 138 AOE 2 | . . . . . . . . . 1 . . . . . . . 1 . . . Critical Strikes 60 | . . . 3 11 1 . . . 4 1 . . 3 2 . 12 . 8 9 6 Actively Blocked 17 | . . . . . . . . . . . . . 2 2 . . . 3 6 4 Part Disruptions 4 | . . . . . . . . . 1 . . . . . . . . . 3 . Damage Taken 19215 | . . . 1058 2987 47 141 . 233 3751 216 46 243 447 215 57 1730 624 630 3250 3540 Core 3884 | . . . 239 254 31 11 . . 819 155 . 49 43 . . 231 76 35 516 1425 Absorbed by Shields 224 | . . . . . . 54 . . . . . . 67 . . . 103 . . . Ignored by Resistances 27 | . . . . . . . . . . . . . . . 27 . . . . . Regen/Repaired (Parts) 816 | . . . . . . . . . . . . . . . . . . 189 586 41 Core Remaining (%) 48 | 100 . . 4 . . . . 65 . . 2 . . . . 71 . . 46 . Volleys Fired 258 | 12 1 1 . 25 . 5 . 7 31 . . 4 43 1 10 9 34 21 28 26 Largest 2 | 2 2 2 . 1 . 1 . 1 1 . . 1 1 1 2 1 1 2 2 2 Hottest 213 | 40 40 40 . 43 . 46 . 46 90 . . 43 100 7 70 49 49 153 200 213 Shots Fired 295 | 24 2 2 . 25 . 5 . 7 31 . . 4 43 1 11 9 34 23 35 39 Gun 86 | 24 2 2 . . . . . . . . . . . . 2 . 21 5 17 13 Cannon 56 | . . . . . . . . . 1 . . . 1 . . . . 18 10 26 Launcher 84 | . . . . 23 . 5 . 6 27 . . 2 . . . 7 10 . 4 . Special 69 | . . . . 2 . . . 1 3 . . 2 42 1 9 2 3 . 4 . Kinetic 56 | 24 2 2 . . . . . . . . . . . . 2 . 21 5 . . Thermal 55 | . . . . . . . . . 1 . . . . . . . . 18 10 26 Explosive 64 | . . . . 18 . 4 . 4 15 . . 2 . . . 7 10 . 4 . Electromagnetic 21 | . . . . 5 . 1 . 2 12 . . . 1 . . . . . . . Slashing 30 | . . . . . . . . . . . . . . . . . . . 17 13 Robot Hit Streak 23 | 6 3 5 . 14 . 5 . 6 7 . . 3 14 13 5 9 15 . 17 23 Robot Miss Streak 2 | 1 . . . 2 . . . 1 1 . . 1 1 . 2 2 2 . 1 2 Penetration Max 1 | . . . . . . . . . . . . . . . . . 1 . 1 1 Secondary Targets 1 | . . . . . . . . . . . . . . . . . . . 1 . Max Gunslinging Chain 1 | . . . . . . . . . . . . . . . . . . . 1 . Shots Hit Robots 403 | 17 2 2 3 87 5 3 . 12 73 . . 12 58 3 9 13 22 . 57 25 Core Hits 251 | 7 1 1 . 65 2 8 . 22 51 . . 7 3 1 1 16 32 . 24 10 Critical Kills 2 | . . . . . . . . . . . . . . . . . 2 . . . Critical Parts Destroyed 3 | . . . . . . . . . . . . . . . . . 3 . . . Critical Strikes 26 | . . . . 8 1 . . 1 3 . . 2 2 . . . 5 . 4 . Destroy 5 | . . . . . . . . . . . . . . . . . 5 . . . Sever 20 | . . . . 8 1 . . . 3 . . 2 2 . . . . . 4 . Impale 1 | . . . . . . . . 1 . . . . . . . . . . . . Melee Attacks 351 | . . . 6 109 10 1 1 14 72 2 . 11 22 2 1 15 7 1 70 7 Impact . | . . . . . . . . . . . . . . . . . . . . . Slashing 345 | . . . 6 109 10 1 1 10 70 2 . 11 22 2 1 15 7 1 70 7 Piercing 6 | . . . . . . . . 4 2 . . . . . . . . . . . Sneak Attacks 62 | . . . 2 16 3 . . . 15 . . 4 5 . 1 6 1 . 7 2 Combat Hostiles 2 | . . . . . . . . . . . . . . . . 1 . . 1 . Follow-up Attacks 19 | . . . . 11 2 . . 3 3 . . . . . . . . . . . Damage Inflicted 26259 | 237 28 26 167 6020 341 578 . 1403 5801 . . 1073 978 71 103 1343 2468 . 4523 1099 Guns 1287 | 237 28 26 . . . . . . . . . . . . . . 137 . 484 375 Cannons 434 | . . . . . . . . . . . . . . . . . . . . 434 Explosions 11248 | . . . . 2391 . 505 . 1040 3231 . . 574 . . . 670 2174 . 663 . Melee 13176 | . . . 167 3629 341 73 . 363 2550 . . 499 978 71 103 645 157 . 3376 224 Ramming 114 | . . . . . . . . . 20 . . . . . . 28 . . . 66 Kinetic 428 | 237 28 26 . . . . . . . . . . . . . . 137 . . . Thermal 500 | . . . . 66 . . . . . . . . . . . . . . . 434 Explosive 9954 | . . . . 2056 . 505 . 773 2539 . . 574 . . . 670 2174 . 663 . Electromagnetic 1228 | . . . . 269 . . . 267 692 . . . . . . . . . . . Impact . | . . . . . . . . . . . . . . . . . . . . . Slashing 13912 | . . . 167 3629 341 73 . 270 2520 . . 499 978 71 103 645 157 . 3860 599 Piercing 123 | . . . . . . . . 93 30 . . . . . . . . . . . Highest Corruption 34 | . . . 4 2 3 3 3 . 22 22 22 . . 5 5 23 . 4 34 18 Average Corruption 6 | . . . 3 1 2 3 3 . 8 22 22 . . 2 3 11 . 2 11 10 Corruption Purged 5 | . . . . . . . . . . . . . . . 5 . . . . . Corruption Blocked . | . . . . . . . . . . . . . . . . . . . . . Effects 172 | . . . 3 17 7 8 3 . 54 5 2 . . 3 4 3 . 3 38 22 Message Errors 38 | . . . 1 9 2 2 . . 10 1 . . . 2 . . . 1 7 3 Matter Fused 55 | . . . 2 4 2 3 1 . 12 2 1 . . 1 3 . . . 17 7 Heat Flow Errors 20 | . . . . 1 1 1 . . 8 . . . . . . 1 . . 3 5 Energy Discharges 17 | . . . . 2 1 . . . 10 . . . . . . . . 1 3 . Parts Rejected 2 | . . . . . . . . . 2 . . . . . . . . . . . Data Loss (minor) 24 | . . . . 1 1 1 2 . 6 2 . . . . 1 2 . 1 4 3 Data Loss (major) 5 | . . . . . . 1 . . 2 . . . . . . . . . 2 . Alerts 1 | . . . . . . . . . 1 . . . . . . . . . . . Misdirections 10 | . . . . . . . . . 3 . 1 . . . . . . . 2 4 Overload Shots . | . . . . . . . . . . . . . . . . . . . . . Overflow Damage 2910 | . . . 110 680 116 5 . 21 556 . . 96 227 . . 252 89 . 699 59 Projectiles 17 | . . . . . . . . . . . . . . . . . . . . 17 Explosions 749 | . . . . 145 . 5 . 4 216 . . 66 . . . 130 89 . 94 . Melee 2144 | . . . 110 535 116 . . 17 340 . . 30 227 . . 122 . . 605 42 Knockbacks 1 | . . . . . . . . . 1 . . . . . . . . . . . Impact 1 | . . . . . . . . . 1 . . . . . . . . . . . Kinetic . | . . . . . . . . . . . . . . . . . . . . . Secondary . | . . . . . . . . . . . . . . . . . . . . . Self-Inflicted Damage 352 | . . . . 26 . 25 . 31 9 . . . . . . 186 34 . 10 31 Shots 9 | . . . . 2 . 1 . 1 1 . . . . . . 2 1 . 1 . Rammed 16 | . . . . . . . . . 4 . . . . . . 2 . . . 10 Targets Rammed 16 | . . . . . . . . . 4 . . . . . . 2 . . . 10 Kicked . | . . . . . . . . . . . . . . . . . . . . . Crushed . | . . . . . . . . . . . . . . . . . . . . . Highest Temperature 505 | . . . 172 183 242 132 . 28 274 . . 9 63 132 241 257 84 367 505 391 Average Temperature 75 | . . . 88 46 122 47 . 12 95 . . 2 16 48 103 52 21 144 74 130 Received Heat Transfer 2236 | . . . 543 708 . 56 . 18 258 9 9 48 61 27 27 151 12 9 129 171 Effects 12 | . . . . . . . . . . . . . . . . . . 3 8 1 Energy Bleed 4 | . . . . . . . . . . . . . . . . . . 1 2 1 Interference 6 | . . . . . . . . . . . . . . . . . . 2 4 . Damage (major) 1 | . . . . . . . . . . . . . . . . . . . 1 . Damage (core) 1 | . . . . . . . . . . . . . . . . . . . 1 . Siege Activations 2 | . . . . 2 . . . . . . . . . . . . . . . . Total Turns 10 | . . . . 10 . . . . . . . . . . . . . . . . Longest Duration 8 | . . . . 8 . . . . . . . . . . . . . . . . Martial Activations . | . . . . . . . . . . . . . . . . . . . . . Shielding Activations . | . . . . . . . . . . . . . . . . . . . . . Robots Disrupted . | . . . . . . . . . . . . . . . . . . . . . Combat Hostiles . | . . . . . . . . . . . . . . . . . . . . . Robots Corrupted 4 | . . . . 1 . . . . 3 . . . . . . . . . . . Combat Hostiles 4 | . . . . 1 . . . . 3 . . . . . . . . . . . Parts Fried 7 | . . . . 2 . . . . 5 . . . . . . . . . . . Impact Corruptions . | . . . . . . . . . . . . . . . . . . . . . Robots Melted . | . . . . . . . . . . . . . . . . . . . . . Combat Hostiles . | . . . . . . . . . . . . . . . . . . . . . Parts Melted 2 | . . . . . . . . 1 . . . . . . . . . . 1 . Heat Transferred 507 | . . . . 100 . . . . . . . . . . . . . . . 407 Parts Sabotaged . | . . . . . . . . . . . . . . . . . . . . . Parts Stolen . | . . . . . . . . . . . . . . . . . . . . . Parts Stripped . | . . . . . . . . . . . . . . . . . . . . . Power Chain Reactions 3 | . . . . 3 . . . . . . . . . . . . . . . . Alert | -11 -10 -10 -9 -6 -6 -6 -6 -5 -5 -5 -5 -4 -4 -4 -4 -4 -3 -3 -3 -2 ------- Run | Yrd Mat Sub Scr Fac Low Low Zio Pro Fac Upp Upp Fac Ext Cet Arc Hub Res Qua Sec Res Maximum Alert Level 3 | . . . . 2 . . . . 2 . . . 2 1 1 3 2 1 1 . Low Security (%) 53 | 100 100 . . 60 . . . . 29 . . 100 59 73 71 42 . 74 38 100 Level 1 31 | . . . . 15 . . . . 68 . . . 24 26 28 11 28 25 61 . Level 2 13 | . . . . 23 . . . . 2 . . . 16 . . 14 71 . . . Level 3 1 | . . . . . . . . . . . . . . . . 30 . . . . Level 4 . | . . . . . . . . . . . . . . . . . . . . . Level 5 . | . . . . . . . . . . . . . . . . . . . . . High Security . | . . . . . . . . . . . . . . . . . . . . . Max Security . | . . . . . . . . . . . . . . . . . . . . . Peak Influence 1057 | 10 . . . 583 . . . . 420 . . 195 428 252 242 1057 551 240 338 144 Initial 543 | . . . . . . . . . 17 . . 69 90 222 43 35 543 225 8 129 Average 206 | 1 . . . 213 . . . . 261 . . 87 178 157 163 425 423 89 176 49 Influence Increases 8637 | 30 . . 5 1251 35 75 . 252 1182 30 . 266 940 380 229 1497 649 260 963 593 Destroy 0b10 Robot/C 3340 | . . . . 660 20 60 . 220 560 . . 100 400 160 80 380 260 . 320 120 Destroy 0b10 Robot/NC 380 | 30 . . 5 90 5 5 . 10 55 . . 20 35 10 5 20 25 . 35 30 Destroy Leader 616 | . . . . 148 10 10 . 20 134 . . 22 54 . . 84 34 . 86 14 Allied During Kill 924 | . . . . 17 . . . 2 . . . 12 377 170 85 192 . . . 69 Successful Hack 431 | . . . . 57 . . . . 24 . . . . . . . 10 41 188 111 Select Force Hacks 120 | . . . . 20 . . . . . . . . . . . 100 . . . . Disable Machine 570 | . . . . 45 . . . . 195 . . . 15 . 30 60 30 75 90 30 Destroy Structure 921 | . . . . 124 . . . . 184 . . 22 44 40 14 136 200 24 94 39 Partial Spotted 90 | . . . . . . . . . . . . . 15 . 15 15 15 . 30 . Lose Combat Pursuer 1245 | . . . . 90 . . . . 30 30 . 90 . . . 510 75 120 120 180 Influence Decreases 8631 | 30 . . 4 683 481 198 . 224 906 184 39 192 727 670 235 562 1286 645 747 818 Entered New Map 1613 | . . . . 1 211 24 . . 11 114 29 42 95 176 65 67 494 175 7 102 Time Decay 4419 | 30 . . 4 512 270 174 . 172 595 70 10 110 392 254 170 185 392 244 490 345 Lost Part 877 | . . . . 100 . . . 40 280 . . 20 . 20 . 70 90 18 100 139 Lost Ally 914 | . . . . 70 . . . 12 20 . . 20 90 220 . 240 10 . . 232 Purge Threat 808 | . . . . . . . . . . . . . 150 . . . 300 208 150 . Squads Dispatched 53 | . . . . 10 . . . . 8 . . 4 . . . 14 4 . 6 7 Investigation 13 | . . . . 1 . . . . . . . 1 . . . 8 2 . 1 . Extermination 19 | . . . . 5 . . . . 4 . . 1 . . . 2 . . 4 3 Reinforcement 16 | . . . . 3 . . . . 3 . . 2 . . . 3 2 . 1 2 Assault 2 | . . . . 1 . . . . . . . . . . . 1 . . . . Garrison 3 | . . . . . . . . . 1 . . . . . . . . . . 2 Intercept . | . . . . . . . . . . . . . . . . . . . . . Searches Triggered . | . . . . . . . . . . . . . . . . . . . . . Construction Impeded 3 | . . . . . . . . . 1 . . . . . . 1 . . . 1 Haulers Reinforced 4 | . . . . . . . . . . . . 1 . . . . 2 . . 1 Active Scanning Responses . | . . . . . . . . . . . . . . . . . . . . . Cargo Convoy Interrupts 1 | . . . . . . . . . . . . . . . . . . . . 1 Stealth | -11 -10 -10 -9 -6 -6 -6 -6 -5 -5 -5 -5 -4 -4 -4 -4 -4 -3 -3 -3 -2 --------- Run | Yrd Mat Sub Scr Fac Low Low Zio Pro Fac Upp Upp Fac Ext Cet Arc Hub Res Qua Sec Res Distress Signals 17 | . . . . 1 . . . . 1 . . . . 2 . 5 5 2 1 . Communications Jammed 98 | . . . . . . . . 2 24 . . . . 21 2 46 . . 3 . Distress Signals 95 | . . . . . . . . . 23 . . . . 21 2 46 . . 3 . Times Spotted 331 | . 1 1 11 41 1 3 . 4 37 5 1 18 20 10 3 56 35 9 33 42 Peak Tracking Total 24 | . . 1 4 7 1 3 . 2 4 8 1 6 3 5 2 24 6 6 4 9 Tactical Retreats 38 | . . . . 4 . . . . 2 1 . 4 . . . 9 3 4 5 6 Traps | -11 -10 -10 -9 -6 -6 -6 -6 -5 -5 -5 -5 -4 -4 -4 -4 -4 -3 -3 -3 -2 ------- Run | Yrd Mat Sub Scr Fac Low Low Zio Pro Fac Upp Upp Fac Ext Cet Arc Hub Res Qua Sec Res Traps Triggered 9 | . . . . 1 . . . . 1 . . 1 2 . . . . . 2 2 Indirectly . | . . . . . . . . . . . . . . . . . . . . . Trap Hack Attempts . | . . . . . . . . . . . . . . . . . . . . . Triggered . | . . . . . . . . . . . . . . . . . . . . . Disarmed . | . . . . . . . . . . . . . . . . . . . . . Reprogrammed . | . . . . . . . . . . . . . . . . . . . . . Reused . | . . . . . . . . . . . . . . . . . . . . . Traps Extracted . | . . . . . . . . . . . . . . . . . . . . . Installed . | . . . . . . . . . . . . . . . . . . . . . Triggered . | . . . . . . . . . . . . . . . . . . . . . Most Traps Carried 6 | . . . . . 6 6 6 6 6 . . . . . . . . . . . Machines | -11 -10 -10 -9 -6 -6 -6 -6 -5 -5 -5 -5 -4 -4 -4 -4 -4 -3 -3 -3 -2 ---------- Run | Yrd Mat Sub Scr Fac Low Low Zio Pro Fac Upp Upp Fac Ext Cet Arc Hub Res Qua Sec Res Machines Disabled 45 | . . . 2 3 . . . 1 13 1 . . 3 . 2 4 2 5 7 2 Max in Single Turn 4 | . . . 1 1 . . . 1 4 1 . . . . 1 2 1 1 2 1 Garrison Access 5 | . . . . 2 . . . . 1 . . . . . . 1 . . 1 . Network Hub 2 | . . . . . . . . . . . . . . . . 2 . . . . Machines Repaired . | . . . . . . . . . . . . . . . . . . . . . Machines Dismantled . | . . . . . . . . . . . . . . . . . . . . . Machines Sabotaged 2 | . . . . . . . . . . . . . . . . 2 . . . . Overloaded Fab Kills . | . . . . . . . . . . . . . . . . . . . . . Hacking | -11 -10 -10 -9 -6 -6 -6 -6 -5 -5 -5 -5 -4 -4 -4 -4 -4 -3 -3 -3 -2 --------- Run | Yrd Mat Sub Scr Fac Low Low Zio Pro Fac Upp Upp Fac Ext Cet Arc Hub Res Qua Sec Res Machines Accessed 58 | . 1 1 5 10 . 1 . . 5 . . . . 1 . 9 1 2 13 9 Terminals 34 | . 1 . . 3 . . . . 3 . . . . 1 . 8 . 2 12 4 Fabricators 6 | . . . . 4 . . . . . . . . . . . . 1 . . 1 Repair Stations 1 | . . . . . . . . . . . . . . . . . . . . 1 Recycling Units . | . . . . . . . . . . . . . . . . . . . . . Scanalyzers 5 | . . . . 1 . . . . 1 . . . . . . . . . . 3 Garrison Access 5 | . . . . 2 . . . . 1 . . . . . . 1 . . 1 . Total Hacks 193 | . 1 4 28 30 . 1 . . 8 . . . . 1 . 16 3 20 45 36 Successful 109 | . . 4 28 20 . 1 . . 3 . . . . . . 10 2 11 17 13 Failed 84 | . 1 . . 10 . . . . 5 . . . . 1 . 6 1 9 28 23 Catastrophic 20 | . . . . . . . . . 2 . . . . . . . . 3 8 7 Database Lockouts . | . . . . . . . . . . . . . . . . . . . . . Manual 64 | . 1 . . 10 . . . . 1 . . . . 1 . 12 3 9 17 10 Terminals 116 | . 1 . . 16 . . . . 4 . . . . 1 . 13 . 20 44 17 Fabricators 15 | . . . . 9 . . . . . . . . . . . . 3 . . 3 Repair Stations 3 | . . . . . . . . . . . . . . . . . . . . 3 Recycling Units . | . . . . . . . . . . . . . . . . . . . . . Scanalyzers 18 | . . . . 3 . . . . 2 . . . . . . . . . . 13 Garrison Access 8 | . . . . 2 . . . . 2 . . . . . . 3 . . 1 . Terminal Hacks 70 | . . 4 28 10 . 1 . . 1 . . . . . . 1 . 10 12 3 Record 32 | . . 4 28 . . . . . . . . . . . . . . . . . Part Schematic 1 | . . . . . . . . . . . . . . . . . . 1 . . Robot Analysis 1 | . . . . . . . . . . . . . . . . . . 1 . . Prototype ID Bank 6 | . . . . 4 . . . . . . . . . . . . . 1 1 . Open Door 2 | . . . . . . 1 . . . . . . . . . . . . 1 . Level Access Points 1 | . . . . . . . . . . . . . . . . . . 1 . . Branch Access Points 2 | . . . . . . . . . . . . . . . . . . 1 . 1 Machine Index 1 | . . . . . . . . . . . . . . . . . . . 1 . Terminal Index 3 | . . . . 1 . . . . . . . . . . . 1 . . 1 . Fabricator Index 1 | . . . . 1 . . . . . . . . . . . . . . . . Alert Level 3 | . . . . . . . . . 1 . . . . . . . . 1 1 . Unreport Threat 3 | . . . . . . . . . . . . . . . . . . 2 1 . Transport Status 1 | . . . . 1 . . . . . . . . . . . . . . . . Recall Extermination 4 | . . . . . . . . . . . . . . . . . . . 2 2 Recall Reinforcements 3 | . . . . . . . . . . . . . . . . . . 1 2 . Hauler Manifests 1 | . . . . 1 . . . . . . . . . . . . . . . . Registered Components 2 | . . . . 1 . . . . . . . . . . . . . . 1 . Registered Prototypes 1 | . . . . . . . . . . . . . . . . . . . 1 . Zone Layout 2 | . . . . 1 . . . . . . . . . . . . . 1 . . Fabricator Hacks 5 | . . . . 3 . . . . . . . . . . . . 1 . . 1 Network Status 4 | . . . . 2 . . . . . . . . . . . . 1 . . 1 Build 1 | . . . . 1 . . . . . . . . . . . . . . . . Repair Station Hacks 2 | . . . . . . . . . . . . . . . . . . . . 2 Scan Component 1 | . . . . . . . . . . . . . . . . . . . . 1 Repair 1 | . . . . . . . . . . . . . . . . . . . . 1 Recycling Unit Hacks . | . . . . . . . . . . . . . . . . . . . . . Scanalyzer 9 | . . . . 2 . . . . 1 . . . . . . . . . . 6 Retrieve Study 9 | . . . . 2 . . . . 1 . . . . . . . . . . 6 Garrison Access Hacks 5 | . . . . 2 . . . . 1 . . . . . . 1 . . 1 . Seal Access 5 | . . . . 2 . . . . 1 . . . . . . 1 . . 1 . Unauthorized Hacks 18 | . . . . 3 . . . . . . . . . . . 8 1 1 4 1 Terminals 15 | . . . . 2 . . . . . . . . . . . 8 . 1 4 . Track 1 | . . . . . . . . . . . . . . . . . . 1 . . Botnet 4 | . . . . 1 . . . . . . . . . . . . . . 3 . Operators 2 | . . . . 1 . . . . . . . . . . . . . . 1 . Sabotage 8 | . . . . . . . . . . . . . . . . 8 . . . . Fabricators 3 | . . . . 1 . . . . . . . . . . . . 1 . . 1 Haulers 2 | . . . . . . . . . . . . . . . . . 1 . . 1 Download 1 | . . . . 1 . . . . . . . . . . . . . . . . Repair Stations . | . . . . . . . . . . . . . . . . . . . . . Recycling Units . | . . . . . . . . . . . . . . . . . . . . . Scanalyzers . | . . . . . . . . . . . . . . . . . . . . . Garrison Access . | . . . . . . . . . . . . . . . . . . . . . Data Cores Recovered 1 | . 1 . . . . . . . . . . . . . . . . . . . Used . | . . . . . . . . . . . . . . . . . . . . . Hacking Detections 36 | . 1 . . 7 . . . . 4 . . . . . . 3 1 2 10 8 Full Trace Events 1 | . . . . . . . . . . . . . . . . . . . 1 . Feedback Events 1 | . . . . . . . . . . . . . . . . . . . 1 . Corruption 1 | . . . . . . . . . . . . . . . . . . . 1 . Feedback Blocked . | . . . . . . . . . . . . . . . . . . . . . Robot Schematics Acquired 4 | . . . . . . . 4 . . . . . . . . . . . . . Robots Built 4 | . . . . 4 . . . . . . . . . . . . . . . . Authchips . | . . . . . . . . . . . . . . . . . . . . . Time 67 | . . . . 67 . . . . . . . . . . . . . . . . Total Robot Build Rating 16 | . . . . 16 . . . . . . . . . . . . . . . . Part Schematics Acquired 16 | . . . . 1 . . 14 . . . . . . . . . . 1 . . Parts Built . | . . . . . . . . . . . . . . . . . . . . . Authchips . | . . . . . . . . . . . . . . . . . . . . . Time . | . . . . . . . . . . . . . . . . . . . . . Total Part Build Rating . | . . . . . . . . . . . . . . . . . . . . . Part Studies Acquired 9 | . . . . 2 . . . . 1 . . . . . . . . . . 6 Parts Repaired 1 | . . . . . . . . . . . . . . . . . . . . 1 Time 28 | . . . . . . . . . . . . . . . . . . . . 28 Parts Recycled . | . . . . . . . . . . . . . . . . . . . . . Recycled Matter . | . . . . . . . . . . . . . . . . . . . . . Retrieved Matter . | . . . . . . . . . . . . . . . . . . . . . Retrieved Components . | . . . . . . . . . . . . . . . . . . . . . Parts Scanalyzed . | . . . . . . . . . . . . . . . . . . . . . Part Schematics Acquired . | . . . . . . . . . . . . . . . . . . . . . Parts Damaged . | . . . . . . . . . . . . . . . . . . . . . Bothacking | -11 -10 -10 -9 -6 -6 -6 -6 -5 -5 -5 -5 -4 -4 -4 -4 -4 -3 -3 -3 -2 ------------ Run | Yrd Mat Sub Scr Fac Low Low Zio Pro Fac Upp Upp Fac Ext Cet Arc Hub Res Qua Sec Res Used RIF Installer . | . . . . . . . . . . . . . . . . . . . . . Robots Hacked 24 | . . . . 1 . . . 1 3 . . 1 3 1 8 2 2 . 2 . Non-combat 5 | . . . . 1 . . . . . . . 1 . . . . 1 . 2 . Combat 1 | . . . . . . . . . . . . . . 1 . . . . . . Robot Hacks Applied 7 | . . . . 1 . . . . . . . 1 . 1 . . 1 . 3 . parse_system 3 | . . . . . . . . . . . . 1 . 1 . . . . 1 . check_alert 4 | . . . . 1 . . . . . . . . . . . . 1 . 2 . Manual 20 | . . . . 1 . . . 1 3 . . . 3 . 8 2 2 . . . Relay Couplers Released . | . . . . . . . . . . . . . . . . . . . . . Fabnet Peak Effective % . | . . . . . . . . . . . . . . . . . . . . . Robots Rewired 12 | . . . . . . . . . . . . 1 11 . . . . . . . Allies Hacked . | . . . . . . . . . . . . . . . . . . . . . Hacks Repelled . | . . . . . . . . . . . . . . . . . . . . . Allies | -11 -10 -10 -9 -6 -6 -6 -6 -5 -5 -5 -5 -4 -4 -4 -4 -4 -3 -3 -3 -2 -------- Run | Yrd Mat Sub Scr Fac Low Low Zio Pro Fac Upp Upp Fac Ext Cet Arc Hub Res Qua Sec Res Total Allies 79 | . . . . 5 . . 4 . 2 . . 1 23 5 8 2 2 . . 27 Largest Group 18 | . . . . 4 . . 4 3 1 . . 1 18 18 18 18 1 1 . 8 Highest-Rated Group 975 | . . . . 48 . . 124 90 26 . . 49 872 975 944 944 26 26 . 114 Highest-Rated Ally 159 | . . . . 26 . . 34 31 26 . . 49 159 153 96 96 26 26 . 15 Total Orders 20 | . . . . . . . . . 3 . . 1 8 . . 3 3 2 . . RETURN 20 | . . . . . . . . . 3 . . 1 8 . . 3 3 2 . . Ally Attacks 476 | . . . . 59 . . . 11 . . . 3 153 84 32 51 . . . 83 Total Damage 11201 | . . . . 555 . . . 111 . . . 116 4150 2176 783 1778 . . . 1532 Kills 63 | . . . . 4 . . . . . . . 2 22 11 4 14 . . . 6 Allies Corrupted 2 | . . . . . . . . . . . . . . . . 1 . . . 1 Allies Melted 4 | . . . 3 . . . . . . . . . . . . 1 . . . . Intel | -11 -10 -10 -9 -6 -6 -6 -6 -5 -5 -5 -5 -4 -4 -4 -4 -4 -3 -3 -3 -2 ------- Run | Yrd Mat Sub Scr Fac Low Low Zio Pro Fac Upp Upp Fac Ext Cet Arc Hub Res Qua Sec Res Active Infowar (turns) 16433 | 65 125 338 2508 2500 596 592 944 573 1880 141 21 225 925 552 355 386 927 541 1286 953 Optics 12539 | . . . . 1642 596 592 944 573 1880 141 21 225 925 552 355 386 927 541 1286 953 Sensors 5591 | . . . . 68 583 . 890 390 . . . . 756 12 142 189 552 541 1172 296 Terrain 171 | . . . . 7 . . . . 162 . . . . . . . . . . 2 Structural 3828 | . . . 14 442 . . . . 28 . . 114 925 275 134 379 675 251 . 591 Seismic 4826 | 65 125 338 2508 758 . . . . 980 . . . . . . . . . . 52 T.N.C. 70 | . . . . . . . . . . . . . . . . . 70 . . . Machine Analysis 2672 | . . . . 2497 175 . . . . . . . . . . . . . . . Cloaking 2 | . . . . . . . . . . . . . . . . . . . . 2 Jamming 5727 | . . . . . . . 357 573 1674 . . . 636 552 355 320 . 205 1055 . Robot Analysis Total 1 | . . . . . . . . . . . . . . . . . . 1 . . Derelict Logs Recovered 9 | . . . 2 . . 1 1 2 . 2 1 . . . . . . . . . Drone Launches 20 | . . . . . . . . . 3 . . 1 8 . . 3 3 2 . . Drone Recoveries 20 | . . . . . . . . . 3 . . 1 8 . . 3 3 2 . . Exploration | -11 -10 -10 -9 -6 -6 -6 -6 -5 -5 -5 -5 -4 -4 -4 -4 -4 -3 -3 -3 -2 ------------- Run | Yrd Mat Sub Scr Fac Low Low Zio Pro Fac Upp Upp Fac Ext Cet Arc Hub Res Qua Sec Res Turns Passed 16769 | 148 125 338 2728 2523 596 592 944 573 1880 141 21 225 925 552 355 386 927 541 1296 953 Spaces Moved 13605 | 65 61 194 1718 1506 483 496 790 399 905 239 41 316 763 348 195 506 1272 611 1456 1241 Core 597 | 5 . . 130 . . . . . 90 239 41 92 . . . . . . . . Treads 2821 | 60 61 194 1588 386 . . . . 532 . . . . . . . . . . . Legs 175 | . . . . 1 . . . . 174 . . . . . . . . . . . Wheels 3396 | . . . . 1119 483 496 790 399 109 . . . . . . . . . . . Hover 6356 | . . . . . . . . . . . . 104 763 348 195 506 1272 611 1444 1113 Flight 244 | . . . . . . . . . . . . 120 . . . . . . . 124 Fastest Speed 35 | 50 160 160 50 100 115 115 115 115 50 50 50 40 50 50 50 50 43 47 43 35 Average Speed 90 | 151 160 160 152 128 115 115 115 115 151 50 50 47 53 50 50 53 48 47 44 53 Slowest Speed 850 | 160 160 160 240 320 115 130 115 130 850 50 50 70 58 56 50 102 98 107 108 131 Overloaded Moves . | . . . . . . . . . . . . . . . . . . . . . Propulsion Burnouts . | . . . . . . . . . . . . . . . . . . . . . Robots Hopped . | . . . . . . . . . . . . . . . . . . . . . Potential Cave-ins 4 | . . . . . . . . . . . . . . . . . . . . 4 Cave-ins Triggered 1 | . . . . . . . . . . . . . . . . . . . . 1 Teleports 2 | . . . . . . . . . . . . . . . . . . . 1 1 Spacefolds 7 | . . . . . . . . . . . . . . . . . . . 6 1 Exploration Rate (%) 52 | 5 19 13 84 31 79 66 85 70 18 57 13 14 83 61 98 60 46 75 83 37 Regions Visited 20 Branch Regions 14 Pre-discovered Areas 6 | . . . 4 . . . 1 . . . 1 . . . . . . . . . Known Exits Taken 15 | . . . 1 1 1 1 1 1 1 1 1 1 1 . . 1 1 1 1 . Unknown Exits Taken 5 | 1 1 1 . . . . . . . . . . . 1 1 . . . . . Scrap Searched 24 | . . 3 4 . 10 1 1 . . 4 1 . . . . . . . . . Spaces Dug 136 | . . . . 31 2 30 . 2 7 1 . 2 . . . 6 28 8 11 8 Terrain Destroyed 644 | . . . . 157 2 48 . 66 102 1 . 18 . . . 53 114 12 54 17 Melee 39 | . . . . 10 2 . . 2 7 1 . 2 . . . 6 1 1 5 2 Projectile 42 | . . . . . . . . . 1 . . . . . . . . 11 15 15 AOE 563 | . . . . 147 . 48 . 64 94 . . 16 . . . 47 113 . 34 . Terrain Rammed . | . . . . . . . . . . . . . . . . . . . . . Walls Destroyed . | . . . . . . . . . . . . . . . . . . . . . Machines Disabled . | . . . . . . . . . . . . . . . . . . . . . Actions | -11 -10 -10 -9 -6 -6 -6 -6 -5 -5 -5 -5 -4 -4 -4 -4 -4 -3 -3 -3 -2 --------- Run | Yrd Mat Sub Scr Fac Low Low Zio Pro Fac Upp Upp Fac Ext Cet Arc Hub Res Qua Sec Res Total 17248 | 87 87 220 1836 1919 512 508 825 480 1282 256 40 368 1258 723 446 591 1548 841 1942 1479 Wait 2126 | . 25 23 6 201 3 . 23 52 183 10 . 10 338 339 223 34 140 170 252 94 Move 13575 | 64 60 193 1717 1505 482 495 789 398 904 238 40 315 762 347 194 505 1271 610 1449 1237 Hop . | . . . . . . . . . . . . . . . . . . . . . Pick Up 155 | 4 1 3 38 19 5 1 1 . 9 1 . 1 9 11 4 3 19 3 17 6 Fast Attach 212 | 7 . . 8 23 3 . 2 . 24 2 . 13 18 5 2 5 18 10 37 35 Attach 90 | . . . 3 10 . . 2 2 9 2 . 5 4 4 2 5 17 1 15 9 Detach 70 | . . . 5 3 1 . 3 . 7 1 . 5 5 3 1 3 12 3 9 9 Swap 158 | . . . 17 21 4 5 1 10 32 . . 2 10 3 4 5 12 11 16 5 Drop 230 | . . . 36 22 7 1 3 . 13 . . 2 21 8 5 5 18 11 49 29 Fire 258 | 12 1 1 . 25 . 5 . 7 31 . . 4 43 1 10 9 34 21 28 26 Melee 320 | . . . 6 90 7 1 1 11 66 2 . 11 22 2 1 15 7 1 70 7 Ram 14 | . . . . . . . . . 2 . . . . . . 2 . . . 10 Kick . | . . . . . . . . . . . . . . . . . . . . . Crush 2 | . . . . . . . . . 2 . . . . . . . . . . . Escape Stasis 38 | . . . . . . . . . . . . . 26 . . . . . . 12 Rewire . | . . . . . . . . . . . . . . . . . . . . . Trap . | . . . . . . . . . . . . . . . . . . . . . Miscellaneous . | . . . . . . . . . . . . . . . . . . . . . Route ------- -11/Scrapyard -10/Materials -10/Subcaves (discovered 4 exits: Mat x2 / Rec / *Scr) -9/Scraptown (discovered 2 exits: *Fac x2) -6/Factory (discovered 5 exits: *Fac x3 / *Low x2) -6/Lower Caves -6/Lower Caves (discovered 2 exits: *Fac / *Zio) -6/Zion -5/Proximity Caves -5/Factory -5/Upper Caves -5/Upper Caves (discovered 2 exits: *Fac / War) -4/Factory (discovered 2 exits: Res / *Ext) -4/Extension (discovered 3 exits: *Res x2 / *Cet) -4/Cetus (discovered 2 exits: *Res / [*Arc]) -4/Archives (discovered 3 exits: *Res / *Hub x2) -4/Hub_04(d) (discovered 3 exits: *Res x3) -3/Research (discovered 6 exits: *Res x3 / Arm / *Qua x2) -3/Quarantine (discovered 3 exits: Res / *Sec / *Frg) -3/Section 7 -2/Research (discovered 2 exits: Tes x2) History --------- Turn | Location | Event 7 | -11/Scrapyard | Discovered new exit (range 14) 149 | -11/Scrapyard | Entered Materials 150 | -10/Materials | Met a group of wandering Federalists 241 | -10/Materials | Discovered new exit (range 7) 274 | -10/Materials | Entered Subcaves 275 | -10/Subcaves | Continued accompanying wandering Federalists (6) 275 | -10/Subcaves | Approached by a straggling Scientist 302 | -10/Subcaves | Build established: Mutant 366 | -10/Subcaves | Shifting Twisted Machinery released Sub. Laser 546 | -10/Subcaves | Wandering Federalist uncovered a shortcut to Scraptown 588 | -10/Subcaves | Visited Clippyterm 593 | -10/Subcaves | Identified exit to Recycling 593 | -10/Subcaves | Identified exit to Materials 612 | -10/Subcaves | Entered Scraptown 769 | -9/Scraptown | Scanned Subdweller tech in exchange for log data 775 | -9/Scraptown | Learned Factory security intel 776 | -9/Scraptown | Learned Factory emergency access door positions 1332 | -9/Scraptown | Discovered new exit (range 11) 1492 | -9/Scraptown | Visited Symbiants 1501 | -9/Scraptown | Visited SPCMW 1519 | -9/Scraptown | Visited Assassins FH 1532 | -9/Scraptown | Visited Cyclists 1554 | -9/Scraptown | Visited Red Mages 1568 | -9/Scraptown | Visited TADAMA 1690 | -9/Scraptown | Visited IN-MT5's Study 1716 | -9/Scraptown | Visited UFD Registry 1716 | -9/Scraptown | Registered with UFD as "Hellslicer" 1797 | -9/Scraptown | Entered Cyclist Reading Room 1906 | -9/Scraptown | Visited Scrapoid Research Area 1935 | -9/Scraptown | Visited Junk Repository 2015 | -9/Scraptown | Visited Derelict Rescue Squad 2181 | -9/Scraptown | Found DRS Beacon 2270 | -9/Scraptown | Visited LU-1G1's Boring Crew 2291 | -9/Scraptown | Visited Supply Room 2354 | -9/Scraptown | Visited Abandonware Association 2373 | -9/Scraptown | Learned abandonware demo "HACKBUD.EXE" 2373 | -9/Scraptown | Learned abandonware demo "MELTYB.EXE" 2417 | -9/Scraptown | Visited Cartography Club 2452 | -9/Scraptown | Visited Science Testing Area 2519 | -9/Scraptown | Visited Chapter 10 2545 | -9/Scraptown | Visited Curators Association 2670 | -9/Scraptown | Learned location of Lower Caves (-6) 2670 | -9/Scraptown | Learned location of Hub_04(d) (-4) 2670 | -9/Scraptown | Learned 8 Materials zone layouts 2670 | -9/Scraptown | Learned 16 Factory zone layouts 2670 | -9/Scraptown | Learned 8 Access zone layouts 2670 | -9/Scraptown | Learned 4 Mines zone layouts 2670 | -9/Scraptown | Learned 12 Upper Caves zone layouts 2670 | -9/Scraptown | Learned 20 Lower Caves zone layouts 2670 | -9/Scraptown | Learned 24 Upper Caves zone layouts 2670 | -9/Scraptown | Learned location of 2 exits from Research 2670 | -9/Scraptown | Learned location of 1 exit from Lower Caves 2670 | -9/Scraptown | Learned location of 1 exit from Proximity Caves 2670 | -9/Scraptown | Identified exit to Factory 2686 | -9/Scraptown | Found Deep Structural Scanner 2914 | -9/Scraptown | Met Optimus 2914 | -9/Scraptown | Accepted into 0bPrime 3076 | -9/Scraptown | Civil war broke out across Scraptown 3146 | -9/Scraptown | Found Tri-treads 3164 | -9/Scraptown | Lost 10 allies 3203 | -9/Scraptown | Core integrity fell below 50% 3205 | -9/Scraptown | Core integrity fell below 20% 3228 | -9/Scraptown | Optimus destroyed in the chaos of civil war 3231 | -9/Scraptown | Lost 4 parts (2p1n1w) 3282 | -9/Scraptown | Lost 3 allies 3331 | -9/Scraptown | Lost 3 allies 3340 | -9/Scraptown | Entered Factory 3340 | -6/Factory | Evolved 8 slots: Power x1, Propulsion x2, Utility x5 3341 | -6/Factory | Identified exit to Factory 3341 | -6/Factory | Identified exit to Lower Caves 3855 | -6/Factory | Discovered exit to Factory (range 6) 3860 | -6/Factory | Build established: Scavenger-Gladiator 4212 | -6/Factory | Fabricated S-27 Virus? 5078 | -6/Factory | Build established: Gladiator 5296 | -6/Factory | Destroyed 8 combat bots 5417 | -6/Factory | Lost 3 parts (1p2u) 5440 | -6/Factory | First assault squad dispatched 5650 | -6/Factory | Build established: Scavenger-Mutant 5863 | -6/Factory | Entered Lower Caves 5864 | -6/Lower Caves | Identified exit to Lower Caves 6098 | -6/Lower Caves | Build established: Scavenger-Assassin 6459 | -6/Lower Caves | Entered another Lower Caves area 6492 | -6/Lower Caves | Discovered exit to Factory (range 8) 6674 | -6/Lower Caves | Encountered a Warlord checkpoint 6760 | -6/Lower Caves | Build established: Derelict-Mutant 7019 | -6/Lower Caves | Discovered new exit (range 10) 7027 | -6/Lower Caves | Identified exit to Zion 7051 | -6/Lower Caves | Entered Zion 7062 | -6/Zion | Learned location of 1 exit from Proximity Caves 7074 | -6/Zion | Given the Hacking Drone Bay 7075 | -6/Zion | Found Prototype Device 7075 | -6/Zion | Identified Hacking Drone Bay 7106 | -6/Zion | Found CR-A16's Pointy Stick 7145 | -6/Zion | Discovered new exit (range 14) 7162 | -6/Zion | Identified exit to Proximity Caves 7230 | -6/Zion | System corruption cleaned by Quarantine Array 7411 | -6/Zion | Build established: Derelict-Assassin 7475 | -6/Zion | Turned away by Imprinter 7538 | -6/Zion | Given A8's code to call for help 7616 | -6/Zion | Found Prototype Device 7616 | -6/Zion | Identified Phasing AFG 7696 | -6/Zion | Gained Derelict followers 7995 | -6/Zion | Entered Proximity Caves 7995 | -5/Proximity Caves | Accompanied by 3 allies 7995 | -5/Proximity Caves | Spotted B-75 Beast 8044 | -5/Proximity Caves | Lost 3 allies 8063 | -5/Proximity Caves | Destroyed B-75 Beast 8134 | -5/Proximity Caves | Learned location of 1 exit from Upper Caves 8382 | -5/Proximity Caves | Attracted the attention of an 0b10 outpost 8468 | -5/Proximity Caves | Lost 3 parts (1p2n) 8525 | -5/Proximity Caves | Learned Factory stockpile data 8568 | -5/Proximity Caves | Entered Factory 8568 | -5/Factory | Evolved 2 slots: Propulsion x1, Utility x1 8569 | -5/Factory | Identified exit to Upper Caves 8640 | -5/Factory | Lost 3 parts (1p2n) 8660 | -5/Factory | Garrison activated, responded to threat 8676 | -5/Factory | Build established: Derelict-Mutant 9072 | -5/Factory | Spotted B-75 Beast 9106 | -5/Factory | Revealed the true nature of CR-A16's Pointy Stick 9109 | -5/Factory | Destroyed B-75 Beast 9263 | -5/Factory | Build established: Scavenger-Mutant 9407 | -5/Factory | Lost 3 parts (1n2u) 10130 | -5/Factory | System corruption reached 10% 10205 | -5/Factory | Lost 6 parts (1p4n1u) 10340 | -5/Factory | Core integrity fell below 50% 10373 | -5/Factory | Lost 5 parts (2n2u1w) 10428 | -5/Factory | Core integrity fell below 20% 10437 | -5/Factory | Lost 5 parts (1p2n1u1w) 10448 | -5/Factory | Entered Upper Caves 10449 | -5/Upper Caves | Identified exit to Upper Caves 10471 | -5/Upper Caves | Learned Factory stockpile data 10499 | -5/Upper Caves | Learned location of 1 exit from Factory 10585 | -5/Upper Caves | Found Alien Artifact 10589 | -5/Upper Caves | Attracted the attention of an 0b10 outpost 10589 | -5/Upper Caves | Entered another Upper Caves area 10589 | -5/Upper Caves | Discovered new exit (range 19) 10590 | -5/Upper Caves | Identified exit to Factory 10590 | -5/Upper Caves | Identified exit to Warlord 10608 | -5/Upper Caves | Attracted the attention of an 0b10 checkpoint 10610 | -5/Upper Caves | Entered Factory 10610 | -4/Factory | Evolved 2 slots: Propulsion x1, Utility x1 10611 | -4/Factory | Identified exit to Extension 10612 | -4/Factory | Identified exit to Research 10683 | -4/Factory | Build established: Mutant 10835 | -4/Factory | Entered Extension 10956 | -4/Extension | Identified exit to Cetus 10987 | -4/Extension | Rescued a captive Derelict 11019 | -4/Extension | Rescued a captive Derelict 11022 | -4/Extension | Rescued a captive Derelict 11047 | -4/Extension | Rescued a captive Derelict 11048 | -4/Extension | Rescued a captive Derelict 11062 | -4/Extension | Rescued A7 11082 | -4/Extension | Rescued a captive Derelict 11224 | -4/Extension | Disrupted transfer network 11341 | -4/Extension | Spotted B-86 Titan 11345 | -4/Extension | Spotted B-86 Titan 11362 | -4/Extension | Allies destroyed B-86 Titan 11379 | -4/Extension | Allies destroyed B-86 Titan 11416 | -4/Extension | Build established: Infiltrator-Mutant 11496 | -4/Extension | Rescued a captive Derelict 11508 | -4/Extension | Rescued a captive Derelict 11569 | -4/Extension | Rescued a captive Derelict 11571 | -4/Extension | Rescued a captive Derelict 11727 | -4/Extension | Build established: Commander-Mutant 11760 | -4/Extension | Entered Cetus 11760 | -4/Cetus | Accompanied by 18 allies (A7) 11765 | -4/Cetus | Acquired a Cetus Manufacturing Module code from A7 11765 | -4/Cetus | Spotted Cetus Guard 11768 | -4/Cetus | Spotted Cetus Guard 11768 | -4/Cetus | Spotted Cetus Guard 11768 | -4/Cetus | Spotted Cetus Guard 11779 | -4/Cetus | Allies destroyed Cetus Guard 11793 | -4/Cetus | Destroyed Cetus Guard 11800 | -4/Cetus | Allies destroyed Cetus Guard 11813 | -4/Cetus | Extracted ID and sensor layout for unrecognized location from A7's data core 11827 | -4/Cetus | Lost 6 allies 11895 | -4/Cetus | Started Cetus Manufacturing Module 11920 | -4/Cetus | Manufactured an Enhanced Grunt 11945 | -4/Cetus | Manufactured an Enhanced Grunt 11970 | -4/Cetus | Manufactured an Enhanced Grunt 11995 | -4/Cetus | Manufactured an Enhanced Grunt 12020 | -4/Cetus | Manufactured an Enhanced Grunt 12033 | -4/Cetus | Discovered new exit (range 21) 12157 | -4/Cetus | Spotted Cetus Guard 12158 | -4/Cetus | Spotted Cetus Guard 12158 | -4/Cetus | Spotted Cetus Guard 12160 | -4/Cetus | Spotted Cetus Guard 12163 | -4/Cetus | Discovered exit to Research (range 22) 12182 | -4/Cetus | Found Prototype Device 12182 | -4/Cetus | Identified Exp. Thermal Shield 12187 | -4/Cetus | Allies destroyed Cetus Guard 12189 | -4/Cetus | Allies destroyed Cetus Guard 12199 | -4/Cetus | Met Revision 17 12220 | -4/Cetus | Lost 7 allies 12312 | -4/Cetus | Entered Archives 12312 | -4/Archives | Accompanied by 10 allies 12470 | -4/Archives | Build established: Scavenger-Mutant 12502 | -4/Archives | Discovered exit to Research (range 14) 12520 | -4/Archives | Discovered new exit (range 17) 12530 | -4/Archives | Discovered new exit (range 18) 12667 | -4/Archives | Entered Hub_04(d) 12667 | -4/Hub_04(d) | Accompanied by 18 allies 12798 | -4/Hub_04(d) | Discovered exit to Research (range 18) 12806 | -4/Hub_04(d) | Build established: Commander-Mutant 12867 | -4/Hub_04(d) | Discovered exit to Research (range 12) 12872 | -4/Hub_04(d) | Discovered exit to Research (range 10) 12902 | -4/Hub_04(d) | Network Hub disabled 12905 | -4/Hub_04(d) | Spotted Lightning 12907 | -4/Hub_04(d) | Lost 5 allies 12908 | -4/Hub_04(d) | Spotted Lightning 12917 | -4/Hub_04(d) | First assault squad dispatched 12952 | -4/Hub_04(d) | Found Prototype Launcher 12952 | -4/Hub_04(d) | Identified Mni. Smartbomb Launcher 12966 | -4/Hub_04(d) | Network Hub disabled 13013 | -4/Hub_04(d) | System corruption reached 10% 13018 | -4/Hub_04(d) | Lost 3 parts (1n2u) 13019 | -4/Hub_04(d) | Spotted Lightning 13045 | -4/Hub_04(d) | Spotted Lightning 13045 | -4/Hub_04(d) | Spotted Lightning 13053 | -4/Hub_04(d) | Entered Research 13053 | -3/Research | Evolved 2 slots: Utility x2 13054 | -3/Research | Identified exit to Research 13162 | -3/Research | Identified exit to Armory 13162 | -3/Research | Identified exit to Quarantine 13164 | -3/Research | Build established: Scavenger-Mutant 13225 | -3/Research | Found Prototype Processor 13225 | -3/Research | Identified Exp. Signal Interpreter 13253 | -3/Research | Revision forces began assault on 0b10 13257 | -3/Research | Met up with Revision 17++ 13480 | -3/Research | Assembled infested ambush trap array 13500 | -3/Research | Spotted B-86 Titan 13514 | -3/Research | Destroyed 9 combat bots 13568 | -3/Research | Lost 6 parts (1p3n1u1w) 13610 | -3/Research | Lost 8 allies 13745 | -3/Research | Build established: Scavenger-Scout 13753 | -3/Research | Research terminal network offline 13892 | -3/Research | Found Gamma Bomb Array 13980 | -3/Research | Entered Quarantine 13980 | -3/Quarantine | Accompanied by 1 ally 13991 | -3/Quarantine | Cryocooling Duct disabled 14006 | -3/Quarantine | Ambient heat levels rising (+20) 14006 | -3/Quarantine | Non-combat units ordered to evacuate 14030 | -3/Quarantine | Found Alien Artifact 14042 | -3/Quarantine | Found Alien Artifact 14042 | -3/Quarantine | Identified Core Reset Matrix 14042 | -3/Quarantine | Identified Dimensional Node Initializer 14042 | -3/Quarantine | Identified Subatomic Replicator 14042 | -3/Quarantine | Used Core Reset Matrix 14046 | -3/Quarantine | Detected hypermatrix surge 14046 | -3/Quarantine | Sensed 14 artifacts in vicinity 14126 | -3/Quarantine | Cryocooling Duct disabled 14141 | -3/Quarantine | Ambient heat levels rising (+20) 14141 | -3/Quarantine | Combat units ordered to evacuate 14163 | -3/Quarantine | Found Transdimensional Reconstructor 14175 | -3/Quarantine | Found Transdimensional Reconstructor 14184 | -3/Quarantine | Spotted Alpha 7 14241 | -3/Quarantine | Quarantine Guard activated 14271 | -3/Quarantine | Found Sigix Broadsword 14374 | -3/Quarantine | Found Prototype Launcher 14374 | -3/Quarantine | Identified Mni. Smartbomb Launcher 14404 | -3/Quarantine | Spotted Fortress 14446 | -3/Quarantine | Discovered new exit (range 7) 14446 | -3/Quarantine | Discovered new exit (range 6) 14448 | -3/Quarantine | Identified exit to Protoforge 14450 | -3/Quarantine | Identified exit to Section 7 14521 | -3/Quarantine | Entered Section 7 14522 | -3/Section 7 | Detected hypermatrix surge 14522 | -3/Section 7 | Sensed 21 artifacts in vicinity 14603 | -3/Section 7 | Found Spacefold Activator 14867 | -3/Section 7 | Spotted B-86 Titan 14878 | -3/Section 7 | Found Prototype Protection 14878 | -3/Section 7 | Identified Centrium Heavy Armor Plating 14942 | -3/Section 7 | Found Prototype Launcher 14942 | -3/Section 7 | Identified Adv. Micro-nuke Launcher 15045 | -3/Section 7 | Watched by a mysterious "MATRIX" hacker 15081 | -3/Section 7 | System corruption reached 10% 15103 | -3/Section 7 | Build established: Scavenger-Ninja 15137 | -3/Section 7 | Spotted Executioner 15137 | -3/Section 7 | Spotted Executioner 15154 | -3/Section 7 | Spotted B-99 Colossus 15281 | -3/Section 7 | Found LRC Storage 15281 | -3/Section 7 | Installed LRC Storage, increased inventory capacity (+2) 15284 | -3/Section 7 | Found LRC Storage 15284 | -3/Section 7 | Installed LRC Storage, increased inventory capacity (+2) 15286 | -3/Section 7 | Found LRC Matter Compressor 15286 | -3/Section 7 | Installed LRC Matter Compressor, increased matter storage capacity (+125) 15350 | -3/Section 7 | Found Terrabomb 15355 | -3/Section 7 | Found Transdimensional Reconstructor 15356 | -3/Section 7 | Found Transdimensional Reconstructor 15418 | -3/Section 7 | Found Sigix Sheargun 15422 | -3/Section 7 | Found Sigix Sheargun 15424 | -3/Section 7 | Used Subatomic Replicator to create Supercharged TR 15429 | -3/Section 7 | Found Sigix Sheargun 15477 | -3/Section 7 | Destroyed Executioner 15486 | -3/Section 7 | Destroyed Executioner 15495 | -3/Section 7 | Found Prototype Processor 15495 | -3/Section 7 | Identified Exp. Targeting Computer 15499 | -3/Section 7 | Found Prototype Processor 15499 | -3/Section 7 | Identified Exp. Core Analyzer 15612 | -3/Section 7 | Found Prototype Hackware 15612 | -3/Section 7 | Identified Exp. System Shield 15648 | -3/Section 7 | Spotted S7 Guard 15732 | -3/Section 7 | System corruption reached 30% 15747 | -3/Section 7 | Warped through subspace 15748 | -3/Section 7 | Core integrity fell below 50% 15777 | -3/Section 7 | Lost 8 parts (2p2n3u1w) 15782 | -3/Section 7 | Found Prototype Device 15782 | -3/Section 7 | Identified Exp. Thermal Defense Suite 15810 | -3/Section 7 | Discovered exit to Research (range 6) 15817 | -3/Section 7 | Entered Research 15817 | -2/Research | Evolved 2 slots: Power x1, Propulsion x1 15855 | -2/Research | Garrison activated, responded to threat 15915 | -2/Research | Repaired Broken Imp. Antigrav System 15957 | -2/Research | Found Unknown Protection 15957 | -2/Research | Identified Hvy. Reflective Plating 16122 | -2/Research | Build established: Scavenger-Scout 16198 | -2/Research | Spotted B-90 Cyclops 16252 | -2/Research | Crushed by falling debris 16292 | -2/Research | Lost 9 parts (1p3n4u1w) 16362 | -2/Research | Lost 3 parts (3n) 16456 | -2/Research | Identified exit to Testing 16495 | -2/Research | System corruption reached 10% 16567 | -2/Research | Build established: Alien-Mutant 16569 | -2/Research | Core integrity fell below 50% 16575 | -2/Research | Warped through subspace 16578 | -2/Research | Emitted hypermatrix ping 16583 | -2/Research | Assembled emerged from beneath the floor 16597 | -2/Research | Assembled emerged from beneath the floor 16617 | -2/Research | Core integrity fell below 20% 16639 | -2/Research | Lost 12 allies 16675 | -2/Research | Assembled emerged from beneath the floor 16702 | -2/Research | Assembled emerged from beneath the floor 16708 | -2/Research | Garrison activated, responded to threat 16723 | -2/Research | Cargo convoy interrupted 16753 | -2/Research | Lost 11 allies 16770 | -2/Research | Destroyed by S-43 Plague with Heavy Machine Gun Last Messages --------------- 16711_ P-80 Master system corrupted by crushing effect. 16711_ Slammed into P-80 Master. 16712_ Slug penetrates P-80 Master. 16713_ P-80 Master knocked back. 16714_ P-80 Master resets P-80 Master, system corruption cleaned. 16715_ Slug penetrates P-80 Master. 16715_ as-42372 destroyed. 16716_ Spacefolded through Wall. 16720_ Acquired Prototype Flight Unit. 16720_ Identified Electron Diverter. 16723_ ALERT: Cargo convoy interrupted, initiating access lockdown. 16725_ ALERT: Hostile activity reported, dispatching reinforcements to area. 16750_ System corrupted: Component data lost. 16759_ Imp. Gyrokinetic Inverter destroyed. 16770_ Scanalyzer disabled. 16770_ S-43 Plague misfires. Map ----- +----------------------------------------------------+ | ?????????????????????????????????????????????????? | | ?????????????????????????????????????????????????? | | ?????????????????????????????????????????????????? | | ?????????????????????????????????????????????????? | | ?????????????????????????????????????????????????? | | ?????????????????????????????????????????????????? | | ?????????????????????????????????????????????????? | | ?????????????????????????????????????????????????? | | ?????????????????????????????????????????????????? | | ?????????????????????????????????????????????????? | | ?????????????????????????????????????????????????? | | ?????????????????????????????????????????????????? | | ?????????????????????????????????????????????????? | | ?????????????????????????????????????????????????? | | ?????????????????????????????????????????????????? | | ?????????????????????#+##+#####??????????????????? | | ?????????????????????# #??????????????????? | | ?????????????????????# #??????????????????? | | ?????????????????????# #??????????????????? | | ?????????????????????# #??????????????????? | | ?????????????????????# #??????????????????? | | ???????????????????### #??????????????????? | | ????????????????????w/ "" #??????????????????? | | ?????????????????????# S"" #??????????????????? | | ???????????????????? # " #??????????????????? | | ???????????????????? ####@;###???????????????????? | | ???????????????????? # ##???????????????????? | | ???????????????????? # ##???????????????????? | | ???????????????????? # ##???? #?????????????? | | ???????????????????? #ss ##??? +?????????????? | | ?????????#??????????## ##??? #?????????????? | | ?????????? ???????? #s s ##?? ??????????????? | | ??????????? ??????? #s ##?? #??????????????? | | ??????????? ?????? # ##?? #??????????????? | | ????????????? ????? # p ##? #??????????????? | | ??????????????""???? # ##? #??????????????? | | ???????????????""??? # ### ##?????????????? | | ???##############/####p####### #?????????????? | | ? H ##+##+#???????? | | ? #???????? | | ? #???????? | | ???####+##############+### ####????? | | ???????????????# # ????? | | ???????????????# + ######???? | | ???????????????#! """ # #????????? | | ???????????????# """ # #????????? | | ???????????????# """ / #????????? | | ???????????????# # ##### #????????? | | ???????????????# # #???? #????????? | | ???????????????# # #????? #????????? | +----------------------------------------------------+ Best States ------------- Heat Dissipation 96 Energy Generation 55 Energy Capacity 500 Matter Stores 304 Matter Capacity 425 Sight Range 23 Robot Scan Range 18 Terrain Scan Range 16 Terrain Scan Density 10 Jamming Range 16 Power Amplification 30 Armor Coverage 600 Resistance: KI 25 Resistance: TH 30 Weapon Cycling 25 Melee Speed Boost 40 Evasion (%) 65 Targeting Accuracy 18 Melee Accuracy 8 Launcher Accuracy 20 Core Analysis 8 Armor Integrity Analysis 40 Recoil Reduction 4 Particle Charging 25 Force Boost 20 Offensive Hacking 24 Defensive Hacking 14 Trap Extractor Capacity 6 Item Schematics ----------------- Fusion Bomb Launcher | -3/Quarantine | Hacked Robot Schematics ------------------ None Fabricated ------------ S-27 Virus | x4 | -6/Factory | Preloaded Repaired ---------- Imp. Antigrav System | 31% | -2/Research | Broken Studied --------- Imp. Antigrav System | -2/Research | Hacked Cmb. Antigrav System | -2/Research | Hacked Mic. Antimatter Reactor | -2/Research | Hacked Gamma Bomb Array | -2/Research | Hacked Great Axe | -2/Research | Hacked Hyp. Railgun | -2/Research | Hacked Alien Tech Used ----------------- Core Reset Matrix Sigix Broadsword Spacefold Activator LRC Storage LRC Matter Compressor Subatomic Replicator Sigix Sheargun Transdimensional Reconstructor Supercharged TR Achievements -------------- None Challenges ------------ None Game ------ Seed IonConstructBlasthammer Manual? 0 Play Time 02:54:06 Cumulative 496.3 hours Start 2026.07.02 @ 14:39:42 End 2026.07.02 @ 17:35:45 Sessions 1 Manual Loads 0 Difficulty Rogue Special Mode None Game No. 290 Rogue 290 Adventurer 0 Explorer 0 Win Type - Total 23 Types 12/1/4/2/1/0/1/2/0/0 Lore% 94 Gallery% 82 Achievement% 76 Wizard Run 0 Options --------- Layout 1 ASCII 0 Keyboard 0 Movement Mouse Keybinds 0 Fullscreen 2 Font 32/SmallcapsGlow Map View 50x35 Zoom Use 0% Tactical HUD 1 Map Filters NONE Filters NONE Steam 1 RUN: 492f61b3-a558-4428-83fe-7508341dbd13